lending/lending_fUSD_20250719
["ID","MTS","AMOUNT","RATE_DAILY","PERIOD"]
[373337514,1752952251642,-480.0,0.00019287,2]
[373337515,1752952251652,-480.0,0.00019287,2]
[373337516,1752952251662,-380.0,0.00019287,2]
[373337517,1752952251672,-300.0,0.00019287,2]
[373337518,1752952251682,-480.0,0.00019287,2]
[373337519,1752952251692,-480.0,0.00019287,2]
[373337520,1752952251701,-480.0,0.00019287,2]
[373337521,1752952251711,-445.59507648,0.00019287,2]
[373337522,1752952251721,-480.0,0.00019287,2]
[373337523,1752952251730,-480.0,0.00019287,2]
[373337524,1752952251740,-480.0,0.00019287,2]
[373337525,1752952251750,-480.0,0.00019287,2]
[373337526,1752952251760,-480.0,0.00019287,2]
[373337527,1752952251770,-480.0,0.00019287,2]
[373337528,1752952251780,-623.21,0.00019287,2]
[373337529,1752952251790,-480.0,0.00019287,2]
[373337530,1752952251800,-480.0,0.00019287,2]
[373337531,1752952251811,-542.39,0.00019287,2]
[373337532,1752952251821,-480.0,0.00019287,2]
[373337533,1752952251831,-480.0,0.00019287,2]
[373337534,1752952251842,-460.0,0.00019287,2]
[373337535,1752952251852,-440.0,0.00019287,2]
[373337536,1752952251861,-480.0,0.00019287,2]
[373337537,1752952251872,-887.69,0.00019287,2]
[373337538,1752952251883,-526.92,0.00019287,2]
[373337539,1752952251893,-480.0,0.00019287,2]
[373337540,1752952251904,-480.0,0.00019287,2]
[373337541,1752952251914,-480.0,0.00019287,2]
[373337542,1752952251925,-480.0,0.00019287,2]
[373337543,1752952251936,-480.0,0.00019287,2]
[373337544,1752952251945,-480.0,0.00019287,2]
[373337545,1752952251955,-480.0,0.00019287,2]
[373337546,1752952251965,-480.0,0.00019287,2]
[373337547,1752952251975,-480.0,0.00019287,2]
[373337548,1752952251985,-480.0,0.00019287,2]
[373337549,1752952251995,-480.0,0.00019287,2]
[373337550,1752952252006,-480.0,0.00019287,2]
[373337551,1752952252016,-510.94,0.00019287,2]
[373337552,1752952252026,-480.0,0.00019287,2]
[373337553,1752952252036,-480.0,0.00019287,2]
[373337554,1752952252047,-480.0,0.00019287,2]
[373337555,1752952252056,-480.0,0.00019287,2]
[373337556,1752952252066,-480.0,0.00019287,2]
[373337557,1752952252077,-480.0,0.00019287,2]
[373337558,1752952252087,-480.0,0.00019287,2]
[373337559,1752952252097,-480.0,0.00019287,2]
[373337560,1752952252107,-440.0,0.00019287,2]
[373337561,1752952252118,-480.0,0.00019287,2]
[373337562,1752952252129,-480.0,0.00019287,2]
[373337563,1752952252138,-480.0,0.00019287,2]
[373337564,1752952252148,-480.0,0.00019287,2]
[373337565,1752952252157,-668.41,0.00019287,2]
[373337566,1752952252167,-480.0,0.00019287,2]
[373337567,1752952252177,-526.67,0.00019287,2]
[373337568,1752952252187,-508.57,0.00019287,2]
[373337569,1752952252196,-480.0,0.00019287,2]
[373337570,1752952252205,-480.0,0.00019287,2]
[373337571,1752952252214,-711.02,0.00019287,2]
[373337572,1752952252224,-480.0,0.00019287,2]
[373337573,1752952252234,-480.0,0.00019287,2]
[373337574,1752952252243,-480.0,0.00019287,2]
[373337575,1752952252252,-480.0,0.00019287,2]
[373337576,1752952252262,-480.0,0.00019287,2]
[373337577,1752952252271,-480.0,0.00019287,2]
[373337578,1752952252281,-1531.26,0.00019287,2]
[373337579,1752952252291,-480.0,0.00019287,2]
[373337580,1752952252301,-723.34,0.00019287,2]
[373337581,1752952252311,-334.73605606,0.00019287,2]
[373337582,1752952252321,-480.0,0.00019287,2]
[373337583,1752952252331,-480.0,0.00019287,2]
[373337584,1752952252340,-480.0,0.00019287,2]
[373337585,1752952252350,-480.0,0.00019287,2]
[373337586,1752952252359,-480.0,0.00019287,2]
[373337587,1752952252369,-480.0,0.00019287,2]
[373337588,1752952252382,-480.0,0.00019287,2]
[373337589,1752952252392,-1138.89,0.00019287,2]
[373337590,1752952252402,-480.0,0.00019287,2]
[373337591,1752952252412,-480.0,0.00019287,2]
[373337592,1752952252423,-418.78,0.00019287,2]
[373337593,1752952252432,-480.0,0.00019287,2]
[373337594,1752952252442,-480.0,0.00019287,2]
[373337595,1752952252452,-547.66,0.00019287,2]
[373337596,1752952252463,-480.0,0.00019287,2]
[373337597,1752952252475,-480.0,0.00019287,2]
[373337598,1752952252484,-440.0,0.00019287,2]
[373337599,1752952252496,-480.0,0.00019287,2]
[373337600,1752952252507,-480.0,0.00019287,2]
[373337601,1752952252516,-480.0,0.00019287,2]
[373337602,1752952252526,-480.0,0.00019287,2]
[373337603,1752952252536,-480.0,0.00019287,2]
[373337604,1752952252546,-480.0,0.00019287,2]
[373337605,1752952252555,-480.0,0.00019287,2]
[373337606,1752952252565,-480.0,0.00019287,2]
[373337607,1752952252575,-480.0,0.00019287,2]
[373337608,1752952252587,-480.0,0.00019287,2]
[373337609,1752952252597,-480.0,0.00019287,2]
[373337610,1752952252608,-340.0,0.00019287,2]
[373337611,1752952252618,-480.0,0.00019287,2]
[373337612,1752952252629,-480.0,0.00019287,2]
[373337613,1752952252639,-480.0,0.00019287,2]
[373337614,1752952252649,-480.0,0.00019287,2]
[373337615,1752952252660,-480.0,0.00019287,2]
[373337616,1752952252670,-480.0,0.00019287,2]
[373337617,1752952252679,-480.0,0.00019287,2]
[373337618,1752952252691,-480.0,0.00019287,2]
[373337619,1752952252702,-619.13,0.00019287,2]
[373337620,1752952252711,-480.0,0.00019287,2]
[373337621,1752952252721,-480.0,0.00019287,2]
[373337622,1752952252731,-463.68,0.00019287,2]
[373337623,1752952252741,-480.0,0.00019287,2]
[373337624,1752952252753,-480.0,0.00019287,2]
[373337625,1752952252764,-480.0,0.00019287,2]
[373337626,1752952252774,-480.0,0.00019287,2]
[373337627,1752952252784,-253.27251027,0.00019287,2]
[373337628,1752952252794,-480.0,0.00019287,2]
[373337629,1752952252803,-480.0,0.00019287,2]
[373337630,1752952252813,-480.0,0.00019287,2]
[373337631,1752952252823,-480.0,0.00019287,2]
[373337632,1752952252832,-897.54,0.00019287,2]
[373337633,1752952252842,-480.0,0.00019287,2]
[373337634,1752952252852,-480.0,0.00019287,2]
[373337635,1752952252862,-480.0,0.00019287,2]
[373337636,1752952252872,-480.0,0.00019287,2]
[373337637,1752952252881,-480.0,0.00019287,2]
[373337638,1752952252891,-440.0,0.00019287,2]
[373337639,1752952252901,-480.0,0.00019287,2]
[373337640,1752952252911,-676.49,0.00019287,2]
[373337641,1752952252920,-480.0,0.00019287,2]
[373337642,1752952252930,-480.0,0.00019287,2]
[373337643,1752952252939,-480.0,0.00019287,2]
[373337644,1752952252949,-588.64,0.00019287,2]
[373337645,1752952252959,-480.0,0.00019287,2]
[373337646,1752952252969,-480.0,0.00019287,2]
[373337647,1752952252979,-725.51,0.00019287,2]
[373337648,1752952252988,-480.0,0.00019287,2]
[373337649,1752952252998,-554.44,0.00019287,2]
[373337650,1752952253008,-480.0,0.00019287,2]
[373337651,1752952253018,-480.0,0.00019287,2]
[373337652,1752952253028,-208.19,0.00019287,2]
[373337653,1752952253039,-480.0,0.00019287,2]
[373337654,1752952253048,-480.0,0.00019287,2]
[373337655,1752952253058,-480.0,0.00019287,2]
[373337656,1752952253068,-480.0,0.00019287,2]
[373337657,1752952253077,-480.0,0.00019287,2]
[373337658,1752952253087,-480.0,0.00019287,2]
[373337659,1752952253097,-480.0,0.00019287,2]
[373337660,1752952253107,-440.0,0.00019287,2]
[373337661,1752952253117,-480.0,0.00019287,2]
[373337662,1752952253126,-440.0,0.00019287,2]
[373337663,1752952253136,-480.0,0.00019287,2]
[373337664,1752952253146,-480.0,0.00019287,2]
[373337665,1752952253156,-480.0,0.00019287,2]
[373337666,1752952253166,-480.0,0.00019287,2]
[373337667,1752952253175,-481.91,0.00019287,2]
[373337668,1752952253185,-480.0,0.00019287,2]
[373337669,1752952253195,-440.0,0.00019287,2]
[373337670,1752952253205,-650.22,0.00019287,2]
[373337671,1752952253215,-480.0,0.00019287,2]
[373337672,1752952253225,-480.0,0.00019287,2]
[373337673,1752952253234,-480.0,0.00019287,2]
[373337674,1752952253244,-440.0,0.00019287,2]
[373337675,1752952253253,-480.0,0.00019287,2]
[373337676,1752952253263,-480.0,0.00019287,2]
[373337677,1752952253272,-480.0,0.00019287,2]
[373337678,1752952253282,-440.0,0.00019287,2]
[373337679,1752952253291,-480.0,0.00019287,2]
[373337680,1752952253301,-480.0,0.00019287,2]
[373337681,1752952253311,-480.0,0.00019287,2]
[373337682,1752952253321,-480.0,0.00019287,2]
[373337683,1752952253331,-480.0,0.00019287,2]
[373337684,1752952253340,-480.0,0.00019287,2]
[373337685,1752952253350,-480.0,0.00019287,2]
[373337686,1752952253361,-480.0,0.00019287,2]
[373337687,1752952253371,-480.0,0.00019287,2]
[373337688,1752952253384,-440.0,0.00019287,2]
[373337689,1752952253395,-480.0,0.00019287,2]
[373337690,1752952253406,-480.0,0.00019287,2]
[373337691,1752952253417,-480.0,0.00019287,2]
[373337692,1752952253430,-480.0,0.00019287,2]
[373337693,1752952253446,-440.0,0.00019287,2]
[373337694,1752952253456,-550.46,0.00019287,2]
[373337695,1752952253466,-480.0,0.00019287,2]
[373337696,1752952253476,-480.0,0.00019287,2]
[373337697,1752952253486,-480.0,0.00019287,2]
[373337698,1752952253496,-520.93,0.00019287,2]
[373337699,1752952253506,-493.62,0.00019287,2]
[373337700,1752952253516,-545.96,0.00019287,2]
[373337701,1752952253526,-480.0,0.00019287,2]
[373337702,1752952253535,-440.0,0.00019287,2]
[373337703,1752952253546,-480.0,0.00019287,2]
[373337704,1752952253556,-480.0,0.00019287,2]
[373337705,1752952253567,-480.0,0.00019287,2]
[373337706,1752952253579,-480.0,0.00019287,2]
[373337707,1752952253589,-480.0,0.00019287,2]
[373337708,1752952253599,-480.0,0.00019287,2]
[373337709,1752952253610,-480.0,0.00019287,2]
[373337710,1752952253620,-480.0,0.00019287,2]
[373337711,1752952253631,-480.0,0.00019287,2]
[373337712,1752952253642,-480.0,0.00019287,2]
[373337713,1752952253654,-480.0,0.00019287,2]
[373337714,1752952253664,-644.18,0.00019287,2]
[373337715,1752952253915,-650.11,0.00019287,2]
[373337716,1752952253925,-480.0,0.00019287,2]
[373337717,1752952253935,-440.0,0.00019287,2]
[373337718,1752952253945,-440.0,0.00019287,2]
[373337719,1752952253955,-480.0,0.00019287,2]
[373337720,1752952253964,-480.0,0.00019287,2]
[373337721,1752952253974,-1096.79,0.00019287,2]
[373337722,1752952253983,-480.0,0.00019287,2]
[373337723,1752952253992,-480.0,0.00019287,2]
[373337724,1752952254002,-654.13,0.00019287,2]
[373337725,1752952254012,-480.0,0.00019287,2]
[373337726,1752952254028,-480.0,0.00019287,2]
[373337727,1752952254038,-480.0,0.00019287,2]
[373337728,1752952254048,-480.0,0.00019287,2]
[373337729,1752952254057,-480.0,0.00019287,2]
[373337730,1752952254067,-480.0,0.00019287,2]
[373337731,1752952254077,-1007.16,0.00019287,2]
[373337732,1752952254087,-480.0,0.00019287,2]
[373337733,1752952254097,-1153.735624,0.00019287,2]
[373337734,1752952254107,-480.0,0.00019287,2]
[373337735,1752952254116,-1129.14,0.00019287,2]
[373337736,1752952254125,-2800.24,0.00019287,2]
[373337737,1752952254135,-610.18,0.00019287,2]
[373337738,1752952254144,-480.0,0.00019287,2]
[373337739,1752952254154,-480.0,0.00019287,2]
[373337740,1752952254163,-1410.32,0.00019287,2]
[373337741,1752952254173,-480.0,0.00019287,2]
[373337742,1752952254182,-1114.793761,0.00019287,2]
[373337743,1752952254191,-274.3902877,0.00019287,2]
[373337744,1752952254201,-1137.260388,0.00019287,2]
[373337745,1752952254210,-480.0,0.00019287,2]
[373337746,1752952254219,-591.19,0.00019287,2]
[373337747,1752952254229,-4550.08,0.00019287,2]
[373337748,1752952254239,-480.0,0.00019287,2]
[373337749,1752952254250,-1598.66,0.00019287,2]
[373337750,1752952254259,-480.0,0.00019287,2]
[373337751,1752952254268,-480.0,0.00019287,2]
[373337752,1752952254278,-1244.44,0.00019287,2]
[373337753,1752952254288,-2999.91,0.00019287,2]
[373337754,1752952254297,-480.0,0.00019287,2]
[373337755,1752952254307,-798.69,0.00019287,2]
[373337756,1752952254316,-480.0,0.00019287,2]
[373337757,1752952254325,-1228.95,0.00019287,2]
[373337758,1752952254334,-1219.01,0.00019287,2]
[373337759,1752952254344,-480.0,0.00019287,2]
[373337760,1752952254353,-1095.8,0.00019287,2]
[373337761,1752952254363,-480.0,0.00019287,2]
[373337762,1752952254372,-480.0,0.00019287,2]
[373337763,1752952254387,-1004.92,0.00019287,2]
[373337764,1752952254397,-1275.12,0.00019287,2]
[373337765,1752952254408,-480.0,0.00019287,2]
[373337766,1752952254418,-2173.06,0.00019287,2]
[373337767,1752952254429,-987.93,0.00019287,2]
[373337768,1752952254439,-480.0,0.00019287,2]
[373337769,1752952254449,-1591.7,0.00019287,2]
[373337770,1752952254459,-526.35117155,0.00019287,2]
[373337771,1752952254469,-480.0,0.00019287,2]
[373337772,1752952254478,-480.0,0.00019287,2]
[373337773,1752952254488,-726.58,0.00019287,2]
[373337774,1752952254498,-480.0,0.00019287,2]
[373337775,1752952254508,-1348.44,0.00019287,2]
[373337776,1752952254517,-489.82,0.00019287,2]
[373337777,1752952254528,-480.0,0.00019287,2]
[373337778,1752952254538,-894.04,0.00019287,2]
[373337779,1752952254548,-589.08,0.00019287,2]
[373337780,1752952254558,-1307.66,0.00019287,2]
[373337781,1752952254567,-268.23,0.00019287,2]
[373337782,1752952254577,-480.0,0.00019287,2]
[373337783,1752952254587,-480.0,0.00019287,2]
[373337784,1752952254596,-1531.13,0.00019287,2]
[373337785,1752952254606,-480.0,0.00019287,2]
[373337786,1752952254615,-851.9,0.00019287,2]
[373337787,1752952254625,-480.0,0.00019287,2]
[373337788,1752952254638,-587.59,0.00019287,2]
[373337789,1752952254658,-1422.54,0.00019287,2]
[373337790,1752952254668,-480.0,0.00019287,2]
[373337791,1752952254678,-1580.83,0.00019287,2]
[373337792,1752952254688,-480.0,0.00019287,2]
[373337793,1752952254698,-480.0,0.00019287,2]
[373337794,1752952254708,-588.33,0.00019287,2]
[373337795,1752952254718,-682.23,0.00019287,2]
[373337796,1752952254727,-480.0,0.00019287,2]
[373337797,1752952254737,-480.0,0.00019287,2]
[373337798,1752952254747,-480.0,0.00019287,2]
[373337799,1752952254757,-480.0,0.00019287,2]
[373337800,1752952254766,-639.79,0.00019287,2]
[373337801,1752952254776,-2038.17,0.00019287,2]
[373337802,1752952254786,-480.0,0.00019287,2]
[373337803,1752952254796,-480.0,0.00019287,2]
[373337804,1752952254805,-480.0,0.00019287,2]
[373337805,1752952254815,-2644.73,0.00019287,2]
[373337806,1752952254825,-1159.61,0.00019287,2]
[373337807,1752952254835,-480.0,0.00019287,2]
[373337808,1752952254845,-873.36,0.00019287,2]
[373337809,1752952254855,-632.76,0.00019287,2]
[373337810,1752952254865,-1769.3,0.00019287,2]
[373337811,1752952254875,-1113.19,0.00019287,2]
[373337812,1752952254885,-2355.97,0.00019287,2]
[373337813,1752952254894,-532.95,0.00019287,2]
[373337814,1752952254903,-867.91,0.00019287,2]
[373337815,1752952254914,-480.0,0.00019287,2]
[373337816,1752952254923,-2135.73,0.00019287,2]
[373337817,1752952254933,-480.0,0.00019287,2]
[373337818,1752952254943,-480.0,0.00019287,2]
[373337819,1752952254953,-480.0,0.00019287,2]
[373337820,1752952254963,-480.0,0.00019287,2]
[373337821,1752952254973,-1177.59,0.00019287,2]
[373337822,1752952254982,-480.0,0.00019287,2]
[373337823,1752952254992,-392.61,0.00019287,2]
[373337824,1752952255002,-1221.51,0.00019287,2]
[373337825,1752952255011,-918.92,0.00019287,2]
[373337826,1752952255021,-2289.35,0.00019287,2]
[373337827,1752952255031,-3701.2,0.00019287,2]
[373337828,1752952255042,-480.0,0.00019287,2]
[373337829,1752952255052,-2188.84,0.00019287,2]
[373337830,1752952255061,-480.0,0.00019287,2]
[373337831,1752952255071,-363.58277601,0.00019287,2]
[373337832,1752952255081,-480.0,0.00019287,2]
[373337833,1752952255091,-835.84,0.00019287,2]
[373337834,1752952255100,-480.0,0.00019287,2]
[373337835,1752952255110,-721.04,0.00019287,2]
[373337836,1752952255120,-1328.9,0.00019287,2]
[373337837,1752952255130,-440.0,0.00019287,2]
[373337838,1752952255140,-480.0,0.00019287,2]
[373337839,1752952255150,-480.0,0.00019287,2]
[373337840,1752952255159,-480.0,0.00019287,2]
[373337841,1752952255169,-1868.74,0.00019287,2]
[373337842,1752952255179,-440.0,0.00019287,2]
[373337843,1752952255189,-3938.89,0.00019287,2]
[373337844,1752952255199,-340.0,0.00019287,2]
[373337845,1752952255208,-1907.17,0.00019287,2]
[373337846,1752952255218,-480.0,0.00019287,2]
[373337847,1752952255227,-480.0,0.00019287,2]
[373337848,1752952255237,-480.0,0.00019287,2]
[373337849,1752952255246,-480.0,0.00019287,2]
[373337850,1752952255256,-868.87,0.00019287,2]
[373337851,1752952255266,-480.0,0.00019287,2]
[373337852,1752952255275,-480.0,0.00019287,2]
[373337853,1752952255285,-604.55,0.00019287,2]
[373337854,1752952255294,-1432.96,0.00019287,2]
[373337855,1752952255304,-480.0,0.00019287,2]
[373337856,1752952255313,-480.0,0.00019287,2]
[373337857,1752952255323,-499.96,0.00019287,2]
[373337858,1752952255334,-566.67,0.00019287,2]
[373337859,1752952255345,-480.0,0.00019287,2]
[373337860,1752952255356,-480.0,0.00019287,2]
[373337861,1752952255366,-480.0,0.00019287,2]
[373337862,1752952255377,-1054.05,0.00019287,2]
[373337863,1752952255389,-830.32,0.00019287,2]
[373337864,1752952255399,-480.0,0.00019287,2]
[373337865,1752952255408,-3857.45,0.00019287,2]
[373337866,1752952255417,-519.60293641,0.00019287,2]
[373337867,1752952255428,-501.66,0.00019287,2]
[373337868,1752952255437,-440.0,0.00019287,2]
[373337869,1752952255448,-1709.71,0.00019287,2]
[373337870,1752952255458,-480.0,0.00019287,2]
[373337871,1752952255469,-1156.69,0.00019287,2]
[373337872,1752952255479,-563.18,0.00019287,2]
[373337873,1752952255489,-480.0,0.00019287,2]
[373337874,1752952255499,-480.0,0.00019287,2]
[373337875,1752952255510,-1001.97,0.00019287,2]
[373337876,1752952255519,-1992.27,0.00019287,2]
[373337877,1752952255529,-480.0,0.00019287,2]
[373337878,1752952255538,-745.32,0.00019287,2]
[373337879,1752952255548,-996.23,0.00019287,2]
[373337880,1752952255557,-698.49,0.00019287,2]
[373337881,1752952255567,-693.29,0.00019287,2]
[373337882,1752952255576,-728.37,0.00019287,2]
[373337883,1752952255586,-440.0,0.00019287,2]
[373337884,1752952255596,-1010.79,0.00019287,2]
[373337885,1752952255606,-480.0,0.00019287,2]
[373337886,1752952255617,-1340.16,0.00019287,2]
[373337887,1752952255627,-480.0,0.00019287,2]
[373337888,1752952255637,-480.0,0.00019287,2]
[373337889,1752952255647,-480.0,0.00019287,2]
[373337890,1752952255659,-480.0,0.00019287,2]
[373337891,1752952255669,-480.0,0.00019287,2]
[373337892,1752952255679,-1059.46,0.00019287,2]
[373337893,1752952255689,-1000.14,0.00019287,2]
[373337894,1752952255698,-480.0,0.00019287,2]
[373337895,1752952255708,-1073.68,0.00019287,2]
[373337896,1752952255717,-1398.18,0.00019287,2]
[373337897,1752952255727,-480.0,0.00019287,2]
[373337898,1752952255739,-480.0,0.00019287,2]
[373337899,1752952255749,-480.0,0.00019287,2]
[373337900,1752952255759,-480.0,0.00019287,2]
[373337901,1752952255770,-1190.32,0.00019287,2]
[373337902,1752952255781,-1476.8,0.00019287,2]
[373337903,1752952255792,-772.02,0.00019287,2]
[373337904,1752952255803,-480.0,0.00019287,2]
[373337905,1752952255813,-633.65,0.00019287,2]
[373337906,1752952255824,-480.0,0.00019287,2]
[373337907,1752952255834,-562.8613502,0.00019287,2]
[373337908,1752952255844,-480.0,0.00019287,2]
[373337909,1752952255854,-578.27,0.00019287,2]
[373337910,1752952255864,-480.0,0.00019287,2]
[373337911,1752952255873,-480.0,0.00019287,2]
[373337912,1752952255883,-535.01,0.00019287,2]
[373337913,1752952255893,-440.0,0.00019287,2]
[373337914,1752952255903,-988.69,0.00019287,2]
[373337915,1752952255912,-480.0,0.00019287,2]
[373337916,1752952255923,-2185.5,0.00019287,2]
[373337917,1752952255932,-480.0,0.00019287,2]
[373337918,1752952255942,-671.34,0.00019287,2]
[373337919,1752952255952,-1859.76,0.00019287,2]
[373337920,1752952255961,-480.0,0.00019287,2]
[373337921,1752952255971,-2311.75,0.00019287,2]
[373337922,1752952255981,-1135.56,0.00019287,2]
[373337923,1752952255990,-5476.24,0.00019287,2]
[373337924,1752952256000,-480.0,0.00019287,2]
[373337925,1752952256012,-480.0,0.00019287,2]
[373337926,1752952256022,-480.0,0.00019287,2]
[373337927,1752952256032,-480.0,0.00019287,2]
[373337928,1752952256042,-480.0,0.00019287,2]
[373337929,1752952256051,-480.0,0.00019287,2]
[373337930,1752952256061,-1147.03,0.00019287,2]
[373337931,1752952256070,-480.0,0.00019287,2]
[373337932,1752952256080,-558.56,0.00019287,2]
[373337933,1752952256090,-480.0,0.00019287,2]
[373337934,1752952256100,-2144.33,0.00019287,2]
[373337935,1752952256110,-625.57,0.00019287,2]
[373337936,1752952256121,-480.0,0.00019287,2]
[373337937,1752952256130,-2303.06,0.00019287,2]
[373337938,1752952256141,-414.40255194,0.00019287,2]
[373337939,1752952256152,-480.0,0.00019287,2]
[373337940,1752952256163,-480.0,0.00019287,2]
[373337941,1752952256175,-480.0,0.00019287,2]
[373337942,1752952256185,-480.0,0.00019287,2]
[373337943,1752952256195,-480.0,0.00019287,2]
[373337944,1752952256206,-937.49516649,0.00019294,2]
[373337945,1752952256215,-680.21414238,0.00019297,2]
[373337946,1752952256225,-156.63574879,0.00019304,2]
[373337947,1752952256235,-160.68,0.00019367,2]
[373337948,1752952256244,-20758.86,0.00019368,5]
[373337949,1752952256254,-454.55511236,0.0001937,2]
[373337950,1752952256332,-223.30767332,0.0001937,2]
[373337951,1752952256343,-500.0,0.00019373,2]
[373337952,1752952256353,-500.0,0.00019373,2]
[373337953,1752952256363,-500.0,0.00019373,2]
[373337954,1752952256374,-637.99553253,0.00019373,2]
[373337955,1752952256388,-500.0,0.00019373,2]
[373337956,1752952256398,-500.0,0.00019373,2]
[373337957,1752952256408,-324.16706911,0.00019373,2]
[373337958,1752952256419,-502.2829511,0.00019373,2]
[373337959,1752952256430,-500.0,0.00019373,2]
[373337960,1752952256440,-506.46204771,0.00019373,2]
[373337961,1752952256453,-165.88013773,0.00019379,2]
[373337962,1752952256463,-529806.47178638,0.0001938,2]
[373337963,1752952256472,-78593.76033269,0.0001938,2]
[373337964,1752952256482,-1417982.7522177,0.0001938,2]
[373337965,1752952256922,-480.0,0.00019178,2]
[373337966,1752952256932,-460.0,0.00019178,2]
[373337967,1752952256941,-480.0,0.00019178,2]
[373337968,1752952256951,-480.0,0.00019178,2]
[373337969,1752952256960,-480.0,0.00019287,2]
[373337970,1752952256969,-463.9479056,0.00019287,2]
[373337971,1752952256985,-16.0520944,0.00019287,2]
[373337972,1752952256994,-480.0,0.00019287,2]
[373337973,1752952257004,-374.90715503,0.0001938,2]
[373337974,1752952257015,-1055.72000471,0.0001938,2]
[373337975,1752952257037,-480.0,0.00019178,2]
[373337976,1752952257046,-1510.852712,0.0001938,2]
[373337977,1752952257062,-484.48553962,0.0001938,2]
[373337979,1752952593805,315.15645857,0.000211,28]
[373337981,1752953286798,511.13,0.00013699,2]
[373337982,1752953293661,4578.58935253,0.0001439,2]
[373337985,1752953323783,1494.69606826,0.00013,2]
[373338005,1752953431776,-192.91676356,0.000154,2]
[373338006,1752953431786,-165.323799,0.00016445,2]
[373338007,1752953431796,-302.5640879,0.00016528,2]
[373338008,1752953431806,-177.53,0.00016712,2]
[373338009,1752953431816,-485.22535037,0.000169,2]
[373338010,1752953431826,-300.0,0.0001694,2]
[373338011,1752953431835,-1098.26366994,0.00016999,2]
[373338012,1752953431847,-101.73633006,0.00016999,2]
[373338013,1752953431856,-300.0,0.00016999,2]
[373338014,1752953431865,-3039.35486993,0.00017,2]
[373338015,1752953431940,-3033.09741193,0.00017,2]
[373338016,1752953431996,-3340.00317841,0.00017,2]
[373338017,1752953432009,-5880.0,0.00017,2]
[373338018,1752953432024,-1099.90366849,0.00017,2]
[373338019,1752953432035,-1300.0,0.00017,2]
[373338086,1752953437726,-8092.70163101,0.00017,2]
[373338087,1752953437738,-6137.81784648,0.00017,2]
[373338088,1752953437749,-2020.60253773,0.00017,2]
[373338089,1752953437991,-2586.746,0.00017,2]
[373338303,1752953440168,-347.9600001,0.00017,2]
[373338306,1752953440180,-419.191585,0.00017,2]
[373338308,1752953440191,-1799.7077458,0.00017,2]
[373338312,1752953440223,-333.660106,0.00017,2]
[373338319,1752953440280,-1581.79997513,0.00017,2]
[373338321,1752953440292,-89712.884528,0.00017,2]
[373338586,1752953442945,-18622.40086653,0.00017,2]
[373338589,1752953442956,-2827.49921435,0.00017,2]
[373338630,1752953443320,-1831.96670797,0.00017,2]
[373338853,1752953445834,-9132.0520944,0.00017,2]
[373338854,1752953445895,-1076.85266632,0.00017,2]
[373338855,1752953445999,-417.81012156,0.00017,2]
[373338856,1752953446157,-4841.15760001,0.00017,2]